fUST/lending_fUST_20240717
["ID","MTS","AMOUNT","RATE_DAILY","PERIOD"]
[332460179,1721207452967,-151.0,0.00021918,2]
[332460180,1721207452977,-500.0,0.00021918,2]
[332460181,1721207452986,-500.0,0.00021918,2]
[332460182,1721207452995,-379.62389027,0.00021918,2]
[332460183,1721207453005,-151.0,0.00021918,7]
[332460184,1721207453015,-3000.0,0.0002192,2]
[332460185,1721207453025,-318.29365018,0.0002192,2]
[332460186,1721207453035,-3000.0,0.0002193,2]
[332460187,1721207453044,-3000.0,0.0002194,2]
[332460188,1721207453054,-150.0,0.00021944,2]
[332460189,1721207453063,-504.0,0.00021944,2]
[332460190,1721207453074,-3000.0,0.0002195,2]
[332460191,1721207453084,-151.0,0.0002195,7]
[332460192,1721207453094,-793.122646,0.0002195,7]
[332460193,1721207453103,-793.122646,0.0002195,7]
[332460194,1721207453112,-3000.0,0.0002196,2]
[332460195,1721207453122,-3000.0,0.0002197,2]
[332460196,1721207453131,-3000.0,0.0002198,2]
[332460197,1721207453141,-3000.0,0.0002199,2]
[332460198,1721207453150,-151.0,0.0002199,2]
[332460199,1721207453160,-151.0,0.0002199,2]
[332460200,1721207453169,-3447.13686063,0.0002199,3]
[332460201,1721207453179,-221.86643936,0.00022,2]
[332460202,1721207453189,-151.0,0.00022,7]
[332460203,1721207453198,-261.18784051,0.00022,2]
[332460204,1721207453207,-151.0,0.00022,7]
[332460205,1721207453216,-3000.0,0.00022,2]
[332460206,1721207453225,-1000.0,0.00022,22]
[332460207,1721207453234,-2129.03469069,0.00022,2]
[332460208,1721207453243,-2129.03469067,0.00022,2]
[332460209,1721207453384,-2129.03469067,0.00022,2]
[332460210,1721207453393,-2129.03469067,0.00022,2]
[332460211,1721207453404,-1000.0,0.00022001,2]
[332460212,1721207453413,-3000.0,0.0002201,2]
[332460213,1721207453422,-1000.0,0.00022015,2]
[332460214,1721207453431,-600.0,0.00022016,2]
[332460215,1721207453441,-3000.0,0.0002202,2]
[332460216,1721207453451,-156.416538,0.00022029,2]
[332460217,1721207453460,-206.508417,0.00022029,2]
[332460218,1721207453469,-193.825479,0.00022029,2]
[332460219,1721207453478,-3000.0,0.0002203,2]
[332460220,1721207453488,-160.49649706,0.00022033,2]
[332460221,1721207453498,-3000.0,0.0002204,2]
[332460222,1721207453507,-151.0,0.0002204,7]
[332460223,1721207453517,-151.0,0.0002204,7]
[332460224,1721207453526,-3000.0,0.0002205,2]
[332460225,1721207453535,-3000.0,0.0002206,2]
[332460226,1721207453547,-3000.0,0.0002207,2]
[332460227,1721207453557,-1000.0,0.00022071,2]
[332460228,1721207453566,-500.0,0.00022075,2]
[332460229,1721207453575,-4264.55,0.00022075,2]
[332460230,1721207453584,-3000.0,0.0002208,2]
[332460231,1721207453592,-3000.0,0.0002209,2]
[332460232,1721207453601,-1000.0,0.00022094,2]
[332460233,1721207453610,-3000.0,0.000221,2]
[332460234,1721207453620,-374.0,0.000221,2]
[332460235,1721207453630,-748.0,0.000221,2]
[332460236,1721207453641,-748.0,0.000221,2]
[332460237,1721207453650,-150.267492,0.000221,2]
[332460238,1721207453661,-1020.927598,0.000221,2]
[332460239,1721207453671,-269.371641,0.000221,7]
[332460240,1721207453682,-269.371641,0.000221,7]
[332460241,1721207453693,-258.754473,0.000221,7]
[332460242,1721207453703,-258.754473,0.000221,7]
[332460243,1721207453713,-3000.0,0.0002211,2]
[332460244,1721207453724,-3447.13686063,0.0002211,3]
[332460245,1721207453735,-3000.0,0.0002212,2]
[332460246,1721207453744,-226.2,0.00022123,2]
[332460247,1721207453756,-169.3,0.00022123,2]
[332460248,1721207453766,-3000.0,0.0002213,2]
[332460249,1721207453775,-151.0,0.0002213,7]
[332460250,1721207453785,-3000.0,0.0002214,2]
[332460251,1721207453794,-3000.0,0.0002215,2]
[332460252,1721207453804,-3000.0,0.0002216,2]
[332460253,1721207453819,-3000.0,0.0002217,2]
[332460254,1721207453830,-3000.0,0.0002218,2]
[332460255,1721207453840,-151.0,0.0002218,7]
[332460256,1721207453851,-793.122646,0.0002218,7]
[332460257,1721207453862,-793.122646,0.0002218,7]
[332460258,1721207453871,-10341.4105819,0.0002218,3]
[332460259,1721207453881,-6894.27372126,0.00022181,3]
[332460260,1721207453891,-1155.5,0.00022188,2]
[332460261,1721207453900,-151.0,0.00022188,2]
[332460262,1721207453911,-226.755689,0.00022188,2]
[332460263,1721207453920,-261.39117001,0.0002219,2]
[332460264,1721207453930,-456.9342014,0.0002219,2]
[332460265,1721207453939,-273.2,0.0002219,2]
[332460266,1721207453948,-4264.55,0.0002219,2]
[332460267,1721207453958,-4264.55,0.0002219,2]
[332460268,1721207453967,-4264.55,0.0002219,2]
[332460269,1721207453979,-4264.55,0.0002219,2]
[332460270,1721207453989,-4264.55,0.0002219,2]
[332460271,1721207454000,-4264.55,0.0002219,2]
[332460272,1721207454010,-4264.55,0.0002219,2]
[332460273,1721207454021,-4264.55,0.0002219,2]
[332460274,1721207454030,-4264.55,0.0002219,2]
[332460275,1721207454039,-4264.55,0.0002219,2]
[332460276,1721207454048,-4264.55,0.0002219,2]
[332460277,1721207454058,-4264.55,0.0002219,2]
[332460278,1721207454067,-4264.55,0.0002219,2]
[332460279,1721207454076,-4264.55,0.0002219,2]
[332460280,1721207454086,-4264.55,0.0002219,2]
[332460281,1721207454096,-4264.55,0.0002219,2]
[332460282,1721207454106,-4264.55,0.0002219,2]
[332460283,1721207454116,-4264.55,0.0002219,2]
[332460284,1721207454125,-4264.58,0.0002219,2]
[332460285,1721207454135,-151.0,0.0002219,7]
[332460286,1721207454144,-151.0,0.0002219,7]
[332460287,1721207454153,-1155.5,0.0002219,2]
[332460288,1721207454164,-1155.5,0.0002219,2]
[332460289,1721207454174,-1155.5,0.0002219,2]
[332460290,1721207454183,-1155.5,0.0002219,2]
[332460291,1721207454193,-1155.5,0.0002219,2]
[332460292,1721207454202,-1155.5,0.0002219,2]
[332460293,1721207454211,-1155.5,0.0002219,2]
[332460294,1721207454220,-1155.5,0.0002219,2]
[332460295,1721207454240,-1155.5,0.0002219,2]
[332460296,1721207454249,-1155.5,0.0002219,2]
[332460297,1721207454258,-1155.5,0.0002219,2]
[332460298,1721207454269,-1155.5,0.0002219,2]
[332460299,1721207454278,-1155.5,0.0002219,2]
[332460300,1721207454287,-1155.5,0.0002219,2]
[332460301,1721207454296,-1155.5,0.0002219,2]
[332460302,1721207454306,-1155.5,0.0002219,2]
[332460303,1721207454316,-151.0,0.0002219,7]
[332460304,1721207454326,-3000.0,0.0002219,2]
[332460305,1721207454335,-282.88355,0.0002219,7]
[332460306,1721207454345,-44769.75674313,0.0002219,2]
[332460307,1721207454354,-151.0,0.0002219,7]
[332460308,1721207454363,-151.0,0.0002219,2]
[332460309,1721207454373,-151.0,0.0002219,7]
[332460310,1721207454382,-151.0,0.0002219,7]
[332460311,1721207454391,-793.122646,0.0002219,7]
[332460312,1721207454401,-793.122646,0.0002219,7]
[332460313,1721207454410,-151.0,0.0002219,7]
[332460314,1721207454419,-269.371641,0.0002219,7]
[332460315,1721207454428,-269.371641,0.0002219,7]
[332460316,1721207454437,-269.371641,0.0002219,7]
[332460317,1721207454446,-269.371641,0.0002219,7]
[332460318,1721207454455,-258.754473,0.0002219,7]
[332460319,1721207454464,-258.754473,0.0002219,7]
[332460320,1721207454473,-258.754473,0.0002219,7]
[332460321,1721207454482,-258.754473,0.0002219,7]
[332460322,1721207454491,-107.99739706,0.00022191,2]
[332460323,1721207454501,-500.080619,0.00022191,2]
[332460324,1721207454510,-500.0,0.00022191,2]
[332460325,1721207454521,-502.84909385,0.00022191,2]
[332460326,1721207454530,-500.0,0.00022191,2]
[332460327,1721207454539,-500.0,0.00022191,2]
[332460328,1721207454548,-500.0,0.00022191,2]
[332460329,1721207454557,-500.0,0.00022191,2]
[332460330,1721207454566,-500.0,0.00022191,2]
[332460331,1721207454575,-500.0,0.00022191,2]
[332460332,1721207454584,-500.0,0.00022191,2]
[332460333,1721207454593,-500.0,0.00022191,2]
[332460334,1721207454602,-500.0,0.00022191,2]
[332460335,1721207454611,-500.0,0.00022191,2]
[332460336,1721207454620,-500.0,0.00022191,2]
[332460337,1721207454629,-596.14921019,0.00022191,2]
[332460338,1721207454638,-503.46345609,0.00022191,2]
[332460339,1721207454647,-500.0,0.00022191,2]
[332460340,1721207454656,-254.19765376,0.00022191,2]
[332460341,1721207454665,-500.0,0.00022191,2]
[332460342,1721207454674,-508.13075862,0.00022191,2]
[332460343,1721207454683,-500.0,0.00022191,2]
[332460344,1721207454691,-504.07693873,0.00022191,2]
[332460345,1721207454700,-504.00214773,0.00022191,2]
[332460346,1721207454709,-500.0,0.00022191,2]
[332460347,1721207454718,-500.0,0.00022191,2]
[332460348,1721207454727,-508.42466005,0.00022191,2]
[332460349,1721207454735,-500.0,0.00022191,2]
[332460350,1721207454744,-503.95797402,0.00022191,2]
[332460351,1721207454753,-500.0,0.00022191,2]
[332460352,1721207454762,-500.0,0.00022191,2]
[332460353,1721207454773,-479.0,0.00022191,2]
[332460354,1721207454782,-500.0,0.00022191,2]
[332460355,1721207454791,-500.0,0.00022191,2]
[332460356,1721207454800,-500.0,0.00022191,2]
[332460357,1721207454810,-500.0,0.00022191,2]
[332460358,1721207454820,-500.0,0.00022191,2]
[332460359,1721207454829,-500.0,0.00022191,2]
[332460360,1721207454838,-500.0,0.00022191,2]
[332460361,1721207454847,-500.0,0.00022191,2]
[332460362,1721207454856,-500.0,0.00022191,2]
[332460363,1721207454865,-524.55995636,0.00022191,2]
[332460364,1721207454874,-381.38395538,0.00022191,2]
[332460365,1721207454885,-500.0,0.00022191,2]
[332460366,1721207454894,-500.0,0.00022191,2]
[332460367,1721207454904,-500.0,0.00022191,2]
[332460368,1721207454914,-500.0,0.00022191,2]
[332460369,1721207454925,-500.0,0.00022191,2]
[332460370,1721207454935,-500.0,0.00022191,2]
[332460371,1721207454945,-500.0,0.00022191,2]
[332460372,1721207454955,-506.14559488,0.00022191,2]
[332460373,1721207454964,-500.0,0.00022191,2]
[332460374,1721207454973,-500.0,0.00022191,2]
[332460375,1721207454982,-503.47645266,0.00022191,2]
[332460376,1721207454993,-520.7730975,0.00022191,2]
[332460377,1721207455003,-500.0,0.00022191,2]
[332460378,1721207455013,-506.94058723,0.00022191,2]
[332460379,1721207455023,-357.65106647,0.00022191,2]
[332460380,1721207455034,-500.0,0.00022191,2]
[332460381,1721207455047,-500.0,0.00022191,2]
[332460382,1721207455057,-500.0,0.00022191,2]
[332460383,1721207455066,-500.0,0.00022191,2]
[332460384,1721207455076,-500.0,0.00022191,2]
[332460385,1721207455086,-500.0,0.00022191,2]
[332460386,1721207455096,-500.0,0.00022191,2]
[332460387,1721207455106,-500.0,0.00022191,2]
[332460388,1721207455116,-500.0,0.00022191,2]
[332460389,1721207455127,-500.0,0.00022191,2]
[332460390,1721207455137,-313.83821788,0.00022191,2]
[332460391,1721207455147,-494.18702152,0.00022191,2]
[332460392,1721207455157,-500.0,0.00022191,2]
[332460393,1721207455166,-500.0,0.00022191,2]
[332460394,1721207455177,-500.0,0.00022191,2]
[332460395,1721207455188,-500.0,0.00022191,2]
[332460396,1721207455198,-502.30217539,0.00022191,2]
[332460397,1721207455209,-500.0,0.00022191,2]
[332460398,1721207455220,-500.0,0.00022191,2]
[332460399,1721207455229,-500.0,0.00022191,2]
[332460400,1721207455250,-339.54805897,0.00022191,2]
[332460401,1721207455259,-500.0,0.00022191,2]
[332460402,1721207455271,-503.4222804,0.00022191,2]
[332460403,1721207455282,-500.0,0.00022191,2]
[332460404,1721207455293,-500.0,0.00022191,2]
[332460405,1721207455302,-500.0,0.00022191,2]
[332460406,1721207455312,-500.0,0.00022191,2]
[332460407,1721207455321,-500.0,0.00022191,2]
[332460408,1721207455330,-500.0,0.00022191,2]
[332460409,1721207455339,-500.0,0.00022191,2]
[332460410,1721207455347,-500.0,0.00022191,2]
[332460411,1721207455356,-500.0,0.00022191,2]
[332460412,1721207455366,-500.0,0.00022191,2]
[332460413,1721207455377,-500.0,0.00022191,2]
[332460414,1721207455386,-500.0,0.00022191,2]
[332460415,1721207455396,-500.0,0.00022191,2]
[332460416,1721207455405,-500.0,0.00022191,2]
[332460417,1721207455414,-500.0,0.00022191,2]
[332460418,1721207455423,-500.0,0.00022191,2]
[332460419,1721207455432,-500.0,0.00022191,2]
[332460420,1721207455441,-500.0,0.00022191,2]
[332460421,1721207455449,-500.0,0.00022191,2]
[332460422,1721207455458,-500.0,0.00022191,2]
[332460423,1721207455467,-500.0,0.00022191,2]
[332460424,1721207455476,-500.0,0.00022191,2]
[332460425,1721207455485,-500.0,0.00022191,2]
[332460426,1721207455494,-500.0,0.00022191,2]
[332460427,1721207455503,-500.0,0.00022191,2]
[332460428,1721207455512,-500.0,0.00022191,2]
[332460429,1721207455521,-500.0,0.00022191,2]
[332460430,1721207455531,-500.0,0.00022191,2]
[332460431,1721207455540,-575.73674924,0.00022191,2]
[332460432,1721207455549,-500.0,0.00022191,2]
[332460433,1721207455558,-228.8614272,0.00022191,2]
[332460434,1721207455567,-500.0,0.00022191,2]
[332460435,1721207455575,-584.21404543,0.00022191,2]
[332460436,1721207455584,-500.0,0.00022191,2]
[332460437,1721207455593,-500.37962165,0.00022191,2]
[332460438,1721207455602,-500.0,0.00022191,2]
[332460439,1721207455611,-500.0,0.00022191,2]
[332460440,1721207455620,-550.8032759,0.00022191,2]
[332460441,1721207455630,-500.0,0.00022191,2]
[332460442,1721207455639,-500.0,0.00022191,2]
[332460443,1721207455648,-500.0,0.00022191,2]
[332460444,1721207455657,-500.0,0.00022191,2]
[332460445,1721207455667,-460.34221619,0.00022191,2]
[332460446,1721207455676,-337.42569232,0.00022191,2]
[332460447,1721207455685,-497.72825127,0.00022191,2]
[332460448,1721207455694,-500.0,0.00022191,2]
[332460449,1721207455703,-502.14058153,0.00022191,2]
[332460450,1721207455712,-500.0,0.00022191,2]
[332460451,1721207455721,-500.0,0.00022191,2]
[332460452,1721207455730,-500.0,0.00022191,2]
[332460453,1721207455739,-562.87137396,0.00022191,2]
[332460454,1721207455748,-500.0,0.00022191,2]
[332460455,1721207455757,-500.0,0.00022191,2]
[332460456,1721207455766,-500.0,0.00022191,2]
[332460457,1721207455775,-500.0,0.00022191,2]
[332460458,1721207455785,-506.03667196,0.00022191,2]
[332460459,1721207455794,-500.0,0.00022191,2]
[332460460,1721207455802,-500.0,0.00022191,2]
[332460461,1721207455813,-500.0,0.00022191,2]
[332460462,1721207455824,-516.28784596,0.00022191,2]
[332460463,1721207455833,-538.45,0.00022191,2]
[332460464,1721207455842,-509.69131851,0.00022191,2]
[332460465,1721207455851,-578.220004,0.00022191,2]
[332460466,1721207455861,-534.62792197,0.00022191,2]
[332460467,1721207455870,-500.0,0.00022191,2]
[332460468,1721207455879,-504.78343686,0.00022191,2]
[332460469,1721207455888,-500.0,0.00022191,2]
[332460470,1721207455897,-500.0,0.00022191,2]
[332460471,1721207456015,-500.0,0.00022191,2]
[332460472,1721207456026,-500.0,0.00022191,2]
[332460473,1721207456035,-500.0,0.00022191,2]
[332460474,1721207456044,-500.0,0.00022191,2]
[332460475,1721207456053,-500.0,0.00022191,2]
[332460476,1721207456061,-500.0,0.00022191,2]
[332460477,1721207456070,-500.0,0.00022191,2]
[332460478,1721207456079,-502.67296792,0.00022191,2]
[332460479,1721207456089,-500.0,0.00022191,2]
[332460480,1721207456098,-500.0,0.00022191,2]
[332460481,1721207456107,-510.66828284,0.00022191,2]
[332460482,1721207456116,-286.86417163,0.00022191,2]
[332460483,1721207456125,-509.47213981,0.00022191,2]
[332460484,1721207456134,-500.0,0.00022191,2]
[332460485,1721207456144,-500.0,0.00022191,2]
[332460486,1721207456153,-500.0,0.00022191,2]
[332460487,1721207456162,-500.0,0.00022191,2]
[332460488,1721207456171,-508.24835316,0.00022191,2]
[332460489,1721207456181,-500.0,0.00022191,2]
[332460490,1721207456190,-500.0,0.00022191,2]
[332460491,1721207456200,-479.0,0.00022191,2]
[332460492,1721207456210,-500.0,0.00022191,2]
[332460493,1721207456219,-500.0,0.00022191,2]
[332460494,1721207456228,-500.0,0.00022191,2]
[332460495,1721207456238,-500.0,0.00022191,2]
[332460496,1721207456247,-277.99095308,0.00022191,2]
[332460497,1721207456256,-531.05614074,0.00022191,2]
[332460498,1721207456267,-500.0,0.00022191,2]
[332460499,1721207456277,-500.0,0.00022191,2]
[332460500,1721207456287,-503.01215136,0.00022191,2]
[332460501,1721207456296,-500.0,0.00022191,2]
[332460502,1721207456305,-500.0,0.00022191,2]
[332460503,1721207456315,-500.0,0.00022191,2]
[332460504,1721207456324,-500.0,0.00022191,2]
[332460505,1721207456334,-500.0,0.00022191,2]
[332460506,1721207456343,-500.0,0.00022191,2]
[332460507,1721207456353,-500.0,0.00022191,2]
[332460508,1721207456362,-500.0,0.00022191,2]
[332460509,1721207456372,-536.62897288,0.00022191,2]
[332460510,1721207456382,-500.0,0.00022191,2]
[332460511,1721207456391,-500.0,0.00022191,2]
[332460512,1721207456401,-500.0,0.00022191,2]
[332460513,1721207456410,-500.0,0.00022191,2]
[332460514,1721207456420,-506.59253411,0.00022191,2]
[332460515,1721207456429,-567.78899762,0.00022191,2]
[332460516,1721207456438,-401.03987576,0.00022191,2]
[332460517,1721207456447,-513.07638177,0.00022191,2]
[332460518,1721207456456,-500.0,0.00022191,2]
[332460519,1721207456465,-500.0,0.00022191,2]
[332460520,1721207456475,-500.0,0.00022191,2]
[332460521,1721207456484,-500.0,0.00022191,2]
[332460522,1721207456493,-501.77627164,0.00022191,2]
[332460523,1721207456502,-500.0,0.00022191,2]
[332460524,1721207456511,-510.99613724,0.00022191,2]
[332460525,1721207456522,-500.0,0.00022191,2]
[332460526,1721207456531,-406.32016621,0.00022191,2]
[332460527,1721207456540,-500.0,0.00022191,2]
[332460528,1721207456550,-502.16022237,0.00022191,2]
[332460529,1721207456559,-500.0,0.00022191,2]
[332460530,1721207456568,-542.51035399,0.00022191,2]
[332460531,1721207456577,-500.0,0.00022191,2]
[332460532,1721207456586,-500.26772081,0.00022191,2]
[332460533,1721207456595,-211.28146264,0.00022191,2]
[332460534,1721207456604,-500.0,0.00022191,2]
[332460535,1721207456612,-500.0,0.00022191,2]
[332460536,1721207456621,-500.0,0.00022191,2]
[332460537,1721207456630,-500.0,0.00022191,2]
[332460538,1721207456639,-455.91853736,0.00022191,2]
[332460539,1721207456648,-500.0,0.00022191,2]
[332460540,1721207456657,-500.0,0.00022191,2]
[332460541,1721207456666,-500.0,0.00022191,2]
[332460542,1721207456675,-500.0,0.00022191,2]
[332460543,1721207456687,-500.0,0.00022191,2]
[332460544,1721207456696,-500.0,0.00022191,2]
[332460545,1721207456705,-500.0,0.00022191,2]
[332460546,1721207456714,-500.0,0.00022191,2]
[332460547,1721207456723,-500.0,0.00022191,2]
[332460548,1721207456732,-500.0,0.00022191,2]
[332460549,1721207456741,-500.0,0.00022191,2]
[332460550,1721207456750,-500.0,0.00022191,2]
[332460551,1721207456759,-239.07540967,0.00022191,2]
[332460552,1721207456770,-505.20120875,0.00022191,2]
[332460553,1721207456779,-502.91771472,0.00022191,2]
[332460554,1721207456789,-545.55358474,0.00022191,2]
[332460555,1721207456801,-500.0,0.00022191,2]
[332460556,1721207456810,-243.27925045,0.00022191,2]
[332460557,1721207456821,-500.0,0.00022191,2]
[332460558,1721207456831,-500.0,0.00022191,2]
[332460559,1721207456839,-500.0,0.00022191,2]
[332460560,1721207456848,-517.44553789,0.00022191,2]
[332460561,1721207456857,-510.63674784,0.00022191,2]
[332460562,1721207456866,-500.0,0.00022191,2]
[332460563,1721207456875,-500.0,0.00022191,2]
[332460564,1721207456884,-500.0,0.00022191,2]
[332460565,1721207456894,-500.0,0.00022191,2]
[332460566,1721207456903,-500.0,0.00022191,2]
[332460567,1721207456912,-500.0,0.00022191,2]
[332460568,1721207456921,-151.41231529,0.00022191,2]
[332460569,1721207456930,-500.0,0.00022191,2]
[332460570,1721207456939,-500.0,0.00022191,2]
[332460571,1721207456948,-500.0,0.00022191,2]
[332460572,1721207456957,-500.0,0.00022191,2]
[332460573,1721207456966,-500.0,0.00022191,2]
[332460574,1721207456975,-500.0,0.00022191,2]
[332460575,1721207456984,-500.0,0.00022191,2]
[332460576,1721207456995,-500.0,0.00022191,2]
[332460577,1721207457004,-500.0,0.00022191,2]
[332460578,1721207457013,-500.0,0.00022191,2]
[332460579,1721207457025,-500.0,0.00022191,2]
[332460580,1721207457035,-500.0,0.00022191,2]
[332460581,1721207457046,-500.0,0.00022191,2]
[332460582,1721207457055,-500.90001296,0.00022191,2]
[332460583,1721207457064,-175.18034061,0.00022191,2]
[332460584,1721207457074,-500.0,0.00022191,2]
[332460585,1721207457083,-502.42635467,0.00022191,2]
[332460586,1721207457092,-502.82370706,0.00022191,2]
[332460587,1721207457101,-500.0,0.00022191,2]
[332460588,1721207457110,-500.0,0.00022191,2]
[332460589,1721207457121,-500.0,0.00022191,2]
[332460590,1721207457132,-500.0,0.00022191,2]
[332460591,1721207457142,-504.95648779,0.00022191,2]
[332460592,1721207457153,-218.50623305,0.00022191,2]
[332460593,1721207457162,-502.29671772,0.00022191,2]
[332460594,1721207457173,-500.0,0.00022191,2]
[332460595,1721207457186,-342.55,0.00022191,2]
[332460596,1721207457195,-500.0,0.00022191,2]
[332460597,1721207457205,-500.0,0.00022191,2]
[332460598,1721207457215,-500.0,0.00022191,2]
[332460599,1721207457226,-500.0,0.00022191,2]
[332460600,1721207457236,-549.79838766,0.00022191,2]
[332460601,1721207457246,-500.0,0.00022191,2]
[332460602,1721207457256,-500.0,0.00022191,2]
[332460603,1721207457266,-500.0,0.00022191,2]
[332460604,1721207457277,-500.0,0.00022191,2]
[332460605,1721207457286,-500.0,0.00022191,2]
[332460606,1721207457296,-508.86161878,0.00022191,2]
[332460607,1721207457305,-500.0,0.00022191,2]
[332460608,1721207457315,-500.0,0.00022191,2]
[332460609,1721207457324,-500.0,0.00022191,2]
[332460610,1721207457333,-501.41812093,0.00022191,2]
[332460611,1721207457343,-500.0,0.00022191,2]
[332460612,1721207457351,-500.0,0.00022191,2]
[332460613,1721207457361,-500.0,0.00022191,2]
[332460614,1721207457370,-393.89739677,0.00022191,2]
[332460615,1721207457380,-500.49192096,0.00022191,2]
[332460616,1721207457389,-500.0,0.00022191,2]
[332460617,1721207457398,-500.0,0.00022191,2]
[332460618,1721207457407,-503.45372705,0.00022191,2]
[332460619,1721207457416,-500.0,0.00022191,2]
[332460620,1721207457425,-500.0,0.00022191,2]
[332460621,1721207457434,-373.8043077,0.00022191,2]
[332460622,1721207457443,-500.0,0.00022191,2]
[332460623,1721207457452,-500.0,0.00022191,2]
[332460624,1721207457462,-500.0,0.00022191,2]
[332460625,1721207457471,-500.0,0.00022191,2]
[332460626,1721207457479,-500.0,0.00022191,2]
[332460627,1721207457489,-500.0,0.00022191,2]
[332460628,1721207457498,-503.39857377,0.00022191,2]
[332460629,1721207457507,-575.42807557,0.00022191,2]
[332460630,1721207457517,-502.54781932,0.00022191,2]
[332460631,1721207457527,-500.0,0.00022191,2]
[332460632,1721207457538,-500.0,0.00022191,2]
[332460633,1721207457549,-500.0,0.00022191,2]
[332460634,1721207457559,-500.0,0.00022191,2]
[332460635,1721207457569,-503.33383982,0.00022191,2]
[332460636,1721207457580,-645.38743394,0.00022191,2]
[332460637,1721207457591,-510.42233371,0.00022191,2]
[332460638,1721207457602,-500.0,0.00022191,2]
[332460639,1721207457612,-502.10135673,0.00022191,2]
[332460640,1721207457624,-500.0,0.00022191,2]
[332460641,1721207457636,-502.52620684,0.00022191,2]
[332460642,1721207457647,-500.0,0.00022191,2]
[332460643,1721207457657,-553.61037358,0.00022191,2]
[332460644,1721207457668,-500.0,0.00022191,2]
[332460645,1721207457678,-500.0,0.00022191,2]
[332460646,1721207457688,-507.53053524,0.00022191,2]
[332460647,1721207457698,-500.0,0.00022191,2]
[332460648,1721207457707,-500.0,0.00022191,2]
[332460649,1721207457716,-500.0,0.00022191,2]
[332460650,1721207457727,-548.85152488,0.00022191,2]
[332460651,1721207457738,-500.0,0.00022191,2]
[332460652,1721207457747,-507.9336107,0.00022191,2]
[332460653,1721207457756,-500.0,0.00022191,2]
[332460654,1721207457766,-538.77411081,0.00022191,2]
[332460655,1721207457775,-500.0,0.00022191,2]
[332460656,1721207457786,-500.0,0.00022191,2]
[332460657,1721207457795,-500.92333048,0.00022191,2]
[332460658,1721207457805,-505.94928361,0.00022191,2]
[332460659,1721207457817,-500.0,0.00022191,2]
[332460660,1721207457826,-500.0,0.00022191,2]
[332460661,1721207457836,-500.0,0.00022191,2]
[332460662,1721207457845,-500.0,0.00022191,2]
[332460663,1721207457856,-500.0,0.00022191,2]
[332460664,1721207457864,-507.77035777,0.00022191,2]
[332460665,1721207457874,-500.0,0.00022191,2]
[332460666,1721207457883,-500.0,0.00022191,2]
[332460667,1721207457893,-500.0,0.00022191,2]
[332460668,1721207457903,-500.0,0.00022191,2]
[332460669,1721207457911,-500.0,0.00022191,2]
[332460670,1721207457920,-500.0,0.00022191,2]
[332460671,1721207457929,-500.0,0.00022191,2]
[332460672,1721207457938,-500.0,0.00022191,2]
[332460673,1721207457948,-500.0,0.00022191,2]
[332460674,1721207457956,-500.0,0.00022191,2]
[332460675,1721207457965,-500.0,0.00022191,2]
[332460676,1721207457974,-500.0,0.00022191,2]
[332460677,1721207457983,-500.0,0.00022191,2]
[332460678,1721207457992,-500.0,0.00022191,2]